bitfinex-derivatives/quotes_BTCF0:USTF0_20251215
["timestamp","ask_amount","ask_price","bid_price","bid_amount"]
[1765808994734,0.20588,89421.0,89420.0,0.05811777]
[1765808995139,0.20488,89421.0,89420.0,0.05811777]
[1765808995333,0.20688,89421.0,89420.0,0.05811777]
[1765808995939,0.20488,89421.0,89420.0,0.05811777]
[1765808996140,0.20588,89421.0,89420.0,0.05811777]
[1765808996845,0.20588,89421.0,89420.0,0.00016777]
[1765808997338,0.20488,89421.0,89420.0,0.00016777]
[1765808998541,0.01388,89413.0,89412.0,0.01762]
[1765808998848,0.1950642,89413.0,89412.0,0.01762]
[1765808999436,0.18388,89413.0,89412.0,0.07557]
[1765808999839,0.18488,89413.0,89412.0,0.07557]
[1765809000335,0.171,89413.0,89412.0,0.07557]
[1765809000648,0.18488,89413.0,89412.0,0.07557]
[1765809000843,0.18488,89413.0,89412.0,0.77549]
[1765809001047,0.01388,89405.0,89404.0,0.01597451]
[1765809001342,0.01388,89405.0,89388.0,0.03361981]
[1765809001343,0.0250672,89389.0,89388.0,0.03361981]
[1765809001550,0.16694,89389.0,89388.0,0.09156981]
[1765809001760,0.16,89389.0,89388.0,0.09156981]
[1765809002248,0.01388,89403.0,89402.0,0.0687456]
[1765809002544,0.0250661,89398.0,89397.0,0.01733]
[1765809002851,0.01388,89389.0,89388.0,0.24517423]
[1765809003041,0.17388,89389.0,89388.0,0.09517981]
[1765809003444,0.17388,89389.0,89388.0,0.09917981]
[1765809003647,0.16,89389.0,89388.0,0.09917981]
[1765809004846,0.17388,89389.0,89388.0,0.09917981]
[1765809005253,0.17388,89389.0,89388.0,0.09517981]
[1765809006050,0.17388,89389.0,89388.0,0.09917981]
[1765809006253,0.16694,89389.0,89388.0,0.09917981]
[1765809006451,0.17388,89389.0,89388.0,0.09917981]
[1765809006653,0.17388,89389.0,89388.0,0.04161981]
[1765809006856,0.17388,89389.0,89388.0,0.02399981]
[1765809007358,0.17388,89389.0,89388.0,0.008]
[1765809008057,0.00694,89389.0,89388.0,0.06556]
[1765809008261,0.0250663,89397.0,89396.0,0.0687464]
[1765809008457,0.2150663,89397.0,89396.0,0.0687464]
[1765809008650,0.20388,89397.0,89396.0,0.0687464]
[1765809008963,0.20388,89397.0,89396.0,0.05756]
[1765809009551,0.19694,89397.0,89396.0,0.05756]
[1765809009751,0.20388,89397.0,89396.0,0.003]
[1765809009957,0.20388,89397.0,89388.0,0.004]
[1765809009958,0.0250672,89389.0,89388.0,0.004]
[1765809010151,0.0250677,89385.0,89384.0,0.01591553]
[1765809010356,0.0250682,89381.0,89380.0,0.00016777]
[1765809010556,0.2050682,89381.0,89380.0,0.00016777]
[1765809010751,0.2050682,89381.0,89378.0,0.0022377]
[1765809010950,0.01388,89379.0,89378.0,0.0022377]
[1765809011163,0.01388,89362.0,89361.0,0.01733]
[1765809011356,0.01388,89355.0,89354.0,0.01601625]
[1765809011562,0.19388,89355.0,89354.0,0.02868]
[1765809011865,0.18,89355.0,89354.0,0.05756]
[1765809012064,0.18012511,89355.0,89354.0,0.07345234]
[1765809012858,0.00016786,89363.0,89362.0,0.0687506]
[1765809013054,0.27,89377.0,89376.0,0.05756]
[1765809013248,0.05596,89385.0,89384.0,0.05756]
[1765809013451,0.05496,89384.0,89383.0,0.0398679]
[1765809013647,0.05496,89371.0,89370.0,0.196328]
[1765809013859,0.05496,89371.0,89361.0,0.07489]
[1765809013860,0.05496,89362.0,89361.0,0.07489]
[1765809014056,0.05496,89359.0,89358.0,0.02766965]
[1765809014257,0.25496,89359.0,89358.0,0.02766965]
[1765809014765,0.05496,89354.0,89353.0,0.00016786]
[1765809014964,0.23496,89354.0,89353.0,0.00016786]
[1765809015156,0.23496,89354.0,89353.0,0.05772786]
[1765809015353,0.18,89354.0,89353.0,0.07340258]
[1765809015553,0.27,89368.0,89367.0,0.05756]
[1765809015554,0.2871,89368.0,89367.0,0.05756]
[1765809015760,0.2871,89368.0,89361.0,0.0285207]
[1765809015761,0.05496,89362.0,89361.0,0.0285207]
[1765809015953,0.05496,89362.0,89361.0,0.0111907]
[1765809015954,0.24496,89362.0,89361.0,0.0111907]
[1765809016165,0.24496,89362.0,89361.0,0.0687507]
[1765809016466,0.00016786,89370.0,89369.0,0.0687497]
[1765809016657,0.00016786,89370.0,89360.0,0.2363989]
[1765809016658,0.05496,89361.0,89360.0,0.2363989]
[1765809016965,0.21496,89361.0,89360.0,0.0860809]
[1765809017466,0.21496,89361.0,89360.0,0.0111909]
[1765809017865,0.21496,89361.0,89360.0,0.0860809]
[1765809018067,0.21496,89361.0,89360.0,0.0880809]
[1765809018268,0.21496,89361.0,89360.0,0.002]
[1765809019265,0.21496,89361.0,89360.0,0.03068]
[1765809019572,0.1871,89361.0,89360.0,0.07689]
[1765809019765,0.21496,89361.0,89360.0,0.07489]
[1765809021172,0.21496,89361.0,89360.0,0.05756]
[1765809021669,0.0661509,89360.0,89359.0,0.011191]
[1765809021869,0.24496,89360.0,89359.0,0.011191]
[1765809022064,0.24496,89360.0,89359.0,0.068751]
[1765809022863,0.19,89360.0,89359.0,0.068751]
[1765809023560,0.24496,89360.0,89359.0,0.068751]
[1765809023760,0.24496,89360.0,89353.0,0.01584258]
[1765809023761,0.05496,89354.0,89353.0,0.01584258]
[1765809023966,0.2561516,89354.0,89353.0,0.01584258]
[1765809025072,0.2561516,89354.0,89353.0,0.01784258]
[1765809025576,0.2561516,89354.0,89353.0,0.00216786]
[1765809025768,0.05496,89339.0,89338.0,0.0022387]
[1765809025972,0.24496,89339.0,89338.0,0.0022387]
[1765809026168,0.24496,89339.0,89338.0,0.0597987]
[1765809026372,0.2171,89339.0,89338.0,0.0597987]
[1765809026858,0.19,89339.0,89338.0,0.07605169]
[1765809027058,0.05512786,89347.0,89346.0,0.05756]
[1765809027259,0.24512786,89347.0,89346.0,0.05756]
[1765809027576,0.24512786,89347.0,89346.0,0.0687526]
[1765809028073,0.2448879,89347.0,89346.0,0.0687526]
[1765809028269,0.19,89347.0,89346.0,0.0717526]
[1765809028662,0.24496,89347.0,89346.0,0.0717526]
[1765809028860,0.24496,89347.0,89346.0,0.0141926]
[1765809029474,0.24496,89347.0,89346.0,0.003]
[1765809029863,0.24496,89347.0,89346.0,0.06056]
[1765809030068,0.2171,89347.0,89346.0,0.06356]
[1765809030264,0.19,89347.0,89346.0,0.06356]
[1765809030671,0.00016786,89355.0,89354.0,0.0695716]
[1765809030976,0.35656,89369.0,89368.0,0.0695699]
[1765809031272,0.05656,89365.0,89364.0,0.0399702]
[1765809031477,0.24656,89365.0,89364.0,0.0695702]
[1765809031774,0.19,89365.0,89364.0,0.0695702]
[1765809031972,0.05658,89362.0,89361.0,0.1874607]
[1765809032174,0.23658,89362.0,89361.0,0.1703507]
[1765809032371,0.23658,89362.0,89361.0,0.2427407]
[1765809032575,0.18,89362.0,89361.0,0.2427407]
[1765809033467,0.00016786,89373.0,89372.0,0.0667494]
[1765809033671,0.19016786,89373.0,89372.0,0.0667494]
[1765809033874,0.21816786,89373.0,89372.0,0.0667494]
[1765809034263,0.19016786,89373.0,89372.0,0.0667494]
[1765809034868,0.24674786,89373.0,89372.0,0.0667494]
[1765809035069,0.05658,89369.0,89368.0,0.0111898]
[1765809035269,0.23658,89369.0,89368.0,0.0667498]
[1765809036479,0.23658,89369.0,89368.0,0.0111898]
[1765809036683,0.05658,89362.0,89361.0,0.2427407]
[1765809036869,0.23658,89362.0,89361.0,0.15916]
[1765809037070,0.23658,89362.0,89361.0,0.21472]
[1765809037271,0.23658,89362.0,89361.0,0.23155]
[1765809038173,0.23658,89362.0,89361.0,0.23355]
[1765809038485,0.23758,89362.0,89361.0,0.23355]
[1765809038785,0.23758,89362.0,89361.0,0.23155]
[1765809038980,0.21,89362.0,89361.0,0.23155]
[1765809039277,0.23858,89362.0,89361.0,0.23155]
[1765809039782,0.21,89362.0,89361.0,0.23155]
[1765809040169,0.23858,89362.0,89361.0,0.15916]
[1765809040583,0.05658,89360.0,89359.0,0.0111909]
[1765809040885,0.23658,89360.0,89359.0,0.0667509]
[1765809041772,0.18,89360.0,89359.0,0.0667509]
[1765809041973,0.23658,89360.0,89359.0,0.0667509]
[1765809042382,0.18,89360.0,89359.0,0.0667509]
[1765809042588,0.23658,89360.0,89359.0,0.0667509]
[1765809043085,0.208,89360.0,89359.0,0.0667509]
[1765809043279,0.23658,89360.0,89359.0,0.0667509]
[1765809043475,0.18,89360.0,89359.0,0.0667509]
[1765809043886,0.208,89360.0,89359.0,0.0667509]
[1765809044090,0.18,89360.0,89359.0,0.0667509]
[1765809044486,0.18,89360.0,89359.0,0.0687509]
[1765809045194,0.208,89360.0,89359.0,0.0677509]
[1765809045589,0.18,89360.0,89359.0,0.0677509]
[1765809045894,0.23658,89360.0,89359.0,0.0677509]
[1765809046483,0.18,89360.0,89359.0,0.0677509]
[1765809047193,0.208,89360.0,89359.0,0.0677509]
[1765809047687,0.23658,89360.0,89359.0,0.0677509]
[1765809048187,0.208,89360.0,89359.0,0.0677509]
[1765809048592,0.23658,89360.0,89359.0,0.0677509]
[1765809048990,0.208,89360.0,89359.0,0.0677509]
[1765809049189,0.18,89360.0,89359.0,0.0677509]
[1765809049590,0.18,89360.0,89359.0,0.1481133]
[1765809049779,0.18,89360.0,89359.0,0.0677509]
[1765809050184,0.18,89360.0,89359.0,0.14811281]
[1765809050384,0.18,89360.0,89359.0,0.0677509]
[1765809051498,0.05674786,89373.0,89372.0,0.0382994]
[1765809051684,0.22674786,89373.0,89372.0,0.0382994]
[1765809051887,0.22674786,89373.0,89372.0,0.0111894]
[1765809052192,0.22674786,89373.0,89372.0,0.0667494]
[1765809052893,0.20416786,89373.0,89372.0,0.0667494]
[1765809053194,0.20416786,89373.0,89372.0,0.14710661]
[1765809053489,0.26074786,89373.0,89372.0,0.0667494]
[1765809054694,0.25674786,89373.0,89372.0,0.0687494]
[1765809054885,0.25674786,89373.0,89372.0,0.14907371]
[1765809055290,0.25674786,89373.0,89372.0,0.0687494]
[1765809055496,0.25674786,89373.0,89372.0,0.0677494]
[1765809055889,0.25674786,89373.0,89372.0,0.14807519]
[1765809056396,0.25674786,89373.0,89372.0,0.0677494]
[1765809057488,0.22816786,89373.0,89372.0,0.0677494]
[1765809057693,0.00016786,89373.0,89372.0,0.17964064]
[1765809058004,0.05658,89398.0,89397.0,0.0835762]
[1765809058200,0.24658,89398.0,89397.0,0.0835762]
[1765809058984,0.24658,89398.0,89397.0,0.0667462]
[1765809059490,0.24658,89398.0,89397.0,0.0677462]
[1765809059989,0.24658,89398.0,89389.0,0.00016786]
[1765809059990,0.0170671,89390.0,89389.0,0.00016786]
[1765809060291,0.19588,89390.0,89389.0,0.00016786]
[1765809060690,0.19564003,89390.0,89389.0,0.00016786]
[1765809061501,0.19564003,89390.0,89389.0,0.00216786]
[1765809062200,0.19564003,89390.0,89389.0,0.00416786]
[1765809062502,0.0135,89401.0,89400.0,0.1025159]
[1765809062686,0.17,89401.0,89400.0,0.3921559]
[1765809063295,0.19741,89401.0,89400.0,0.3454]
[1765809063509,0.19741,89401.0,89400.0,0.38097]
[1765809064196,0.19741,89401.0,89400.0,0.31042]
[1765809064598,0.02862,89393.0,89392.0,0.38326]
[1765809064800,0.19862,89393.0,89392.0,0.36248]
[1765809065002,0.02901,89390.0,89389.0,0.00016786]
[1765809065199,0.19901,89390.0,89389.0,0.00016786]
[1765809066903,0.19901,89390.0,89389.0,0.00216786]
[1765809067095,0.19901,89390.0,89389.0,0.00416786]
[1765809067500,0.19901,89390.0,89389.0,0.07471786]
[1765809068195,0.19901,89390.0,89389.0,0.00416786]
[1765809071009,0.19901,89390.0,89382.0,0.7016]
[1765809071010,0.036608,89383.0,89382.0,0.7016]
[1765809071191,0.036608,89383.0,89362.0,0.10043762]
[1765809071192,0.02542,89364.0,89363.0,1.4098705]
[1765809071501,0.20542,89364.0,89363.0,1.4098705]
[1765809072303,0.18,89364.0,89363.0,1.4098705]
[1765809072502,0.00016786,89372.0,89363.0,1.4098705]
[1765809072503,0.00016786,89372.0,89371.0,0.0817395]
[1765809072700,0.0111848,89409.0,89370.0,0.02078]
[1765809072701,0.02764,89394.0,89393.0,0.0111866]
[1765809072902,0.22764,89394.0,89393.0,0.0111866]
[1765809073106,0.22764,89394.0,89391.0,0.70168]
[1765809073107,0.028,89392.0,89391.0,0.70168]
[1765809073414,0.208,89392.0,89391.0,0.70168]
[1765809074219,0.208,89392.0,89391.0,0.73666]
[1765809074395,0.208,89392.0,89391.0,0.77223]
[1765809074712,0.1798322,89392.0,89391.0,0.77223]
[1765809075207,0.1798322,89392.0,89388.0,0.02078]
[1765809075208,0.0297,89389.0,89388.0,0.02078]
[1765809075407,0.2197,89389.0,89388.0,0.3027]
[1765809076206,0.2197,89389.0,89388.0,0.37325]
[1765809076707,0.2197,89389.0,89388.0,0.09333]
[1765809077204,0.19,89389.0,89388.0,0.09333]
[1765809077407,0.00016786,89400.0,89399.0,0.081736]
[1765809077707,0.22106786,89400.0,89399.0,0.03498]
[1765809078011,0.0309,89398.0,89397.0,0.0319662]
[1765809078207,0.2009,89398.0,89397.0,0.29138]
[1765809078503,0.2009,89398.0,89388.0,0.02278]
[1765809078504,0.0423772,89389.0,89388.0,0.02278]
[1765809078712,0.2123772,89389.0,89388.0,0.72454]
[1765809079013,0.2123772,89389.0,89388.0,0.72354]
[1765809079204,0.2123772,89389.0,89388.0,0.72254]
[1765809079400,0.2123772,89389.0,89388.0,0.70176]
[1765809079713,0.0432479,89384.0,89383.0,0.00016786]
[1765809079914,0.2132479,89384.0,89383.0,0.00016786]
[1765809082017,0.044869,89375.0,89374.0,1.39864]
[1765809082214,0.214869,89375.0,89374.0,1.39864]
[1765809082907,0.20368,89375.0,89374.0,1.39864]
[1765809083308,0.20368,89375.0,89374.0,1.40164]
[1765809083514,0.20368,89375.0,89374.0,1.40464]
[1765809084604,0.20368,89375.0,89374.0,0.006]
[1765809084808,0.03361,89367.0,89366.0,0.00016786]
[1765809085111,0.21361,89367.0,89366.0,0.00016786]
[1765809086008,0.21761,89367.0,89366.0,0.00516786]
[1765809086711,0.19421,89367.0,89366.0,0.07071786]
[1765809086914,0.19321,89367.0,89366.0,0.07071786]
[1765809087221,0.19521,89367.0,89366.0,0.07071786]
[1765809087903,0.184,89367.0,89366.0,0.07071786]
[1765809088109,0.204,89367.0,89366.0,0.07071786]
[1765809089211,0.00016786,89375.0,89374.0,0.0817391]
[1765809089410,0.16016786,89375.0,89374.0,0.6016991]
[1765809090016,0.09857786,89375.0,89374.0,0.6016991]
[1765809090718,0.09857786,89375.0,89374.0,0.6026991]
[1765809091722,0.18077786,89375.0,89374.0,0.0827391]
[1765809092019,0.19894786,89375.0,89374.0,0.001]
[1765809092621,0.08542,89370.0,89369.0,0.0111896]
[1765809092821,0.27542,89370.0,89369.0,0.0111896]
[1765809093813,0.27542,89370.0,89367.0,0.38004]
[1765809093814,0.08542,89368.0,89367.0,0.38004]
[1765809094012,0.08542,89367.0,89366.0,0.00016786]
[1765809094317,0.28542,89367.0,89366.0,0.00016786]
[1765809096727,0.28642,89367.0,89366.0,0.00016786]
[1765809097119,0.28742,89367.0,89366.0,0.00016786]
[1765809097513,0.28642,89367.0,89366.0,0.00016786]
[1765809097713,0.29242,89367.0,89366.0,0.00116786]
[1765809099933,0.2506,89367.0,89366.0,0.08708786]
[1765809100524,0.194,89367.0,89366.0,0.08708786]
[1765809100724,0.01237,89410.0,89382.0,0.08592]
[1765809101033,0.17016786,89383.0,89382.0,0.78796]
[1765809102436,0.25558786,89383.0,89382.0,0.78796]
[1765809102934,0.25558786,89383.0,89382.0,0.70204]
[1765809103128,0.08542,89378.0,89377.0,0.0111887]
[1765809103328,0.24542,89378.0,89377.0,0.0111887]
[1765809103629,0.24542,89378.0,89377.0,0.0557087]
[1765809103833,0.24542,89378.0,89377.0,0.0971087]
[1765809104222,0.16,89378.0,89377.0,0.0971087]
[1765809104718,0.161,89378.0,89377.0,0.0971087]
[1765809105933,0.161,89378.0,89377.0,0.1773992]
[1765809106129,0.161,89378.0,89377.0,0.0971087]
[1765809106335,0.00016786,89383.0,89382.0,0.0971081]
[1765809106539,0.19016786,89383.0,89382.0,0.0971081]
[1765809107425,0.27558786,89383.0,89382.0,0.0971081]
[1765809107925,0.27558786,89383.0,89382.0,0.51987677]
[1765809108129,0.19016786,89383.0,89382.0,0.4395881]
[1765809108338,0.19016786,89383.0,89382.0,0.4405881]
[1765809108836,0.0111838,89417.0,89398.0,0.0111861]
[1765809109040,0.08542,89408.0,89407.0,0.24736605]
[1765809109337,0.25542,89408.0,89407.0,0.097105]
[1765809109638,0.25542,89408.0,89407.0,0.055705]
[1765809109830,0.25542,89408.0,89407.0,0.011185]
[1765809110137,0.25842,89408.0,89407.0,0.011185]
[1765809111026,0.25742,89408.0,89407.0,0.011185]
[1765809111226,0.26042,89408.0,89407.0,0.011185]
[1765809111839,0.08542,89400.0,89399.0,0.71343376]
[1765809112025,0.26542,89400.0,89399.0,0.75795376]
[1765809112536,0.0436,89400.0,89399.0,0.09727376]
[1765809112831,0.2136,89400.0,89399.0,0.78451376]
[1765809113032,0.17,89400.0,89399.0,0.78451376]
[1765809113222,0.004,89408.0,89407.0,0.097105]
[1765809113420,0.2476,89408.0,89407.0,0.097105]
[1765809113933,0.28542,89408.0,89407.0,0.097105]
[1765809114238,0.28542,89408.0,89407.0,0.011185]
[1765809115336,0.08542,89400.0,89399.0,0.01135376]
[1765809115538,0.27542,89400.0,89399.0,0.01135376]
[1765809115729,0.27542,89400.0,89399.0,0.24724776]
[1765809116633,0.28807,89400.0,89399.0,0.00016776]
[1765809116829,0.27542,89400.0,89399.0,0.00016776]
[1765809117946,0.27742,89400.0,89399.0,0.00016776]
[1765809118240,0.27842,89400.0,89399.0,0.00016776]
[1765809118629,0.08542,89377.0,89375.0,0.0802906]
[1765809118826,0.08542,89373.0,89372.0,0.0111894]
[1765809119030,0.27542,89373.0,89372.0,0.7129894]
[1765809119930,0.27542,89373.0,89372.0,0.7018]
[1765809120327,0.27542,89373.0,89370.0,0.01888]
[1765809120328,0.0966095,89371.0,89370.0,0.01888]
[1765809120528,0.0966095,89371.0,89355.0,0.08830418]
[1765809120529,0.08542,89365.0,89358.0,0.0802906]
[1765809120740,0.24542,89365.0,89355.0,0.22124]
[1765809121236,0.24542,89365.0,89355.0,0.37134009]
[1765809121439,0.24542,89365.0,89355.0,0.2324314]
[1765809121737,0.24542,89365.0,89355.0,0.37134009]
[1765809121956,0.24542,89365.0,89364.0,0.05778776]
[1765809122133,0.24542,89365.0,89364.0,0.06178776]
[1765809122329,0.16,89365.0,89364.0,0.06178776]
[1765809122837,0.16137009,89400.0,89364.0,0.06178776]
[1765809122838,0.0230047,89410.0,89380.0,0.07416]
[1765809123036,0.20016776,89381.0,89380.0,0.57488]
[1765809123237,0.25608776,89381.0,89380.0,0.50072]
[1765809123842,0.05592,89367.0,89366.0,0.08014807]
[1765809124040,0.05592,89367.0,89364.0,0.00816776]
[1765809124041,0.05592,89365.0,89364.0,0.00816776]
[1765809124341,0.24592,89365.0,89364.0,0.00416776]
[1765809124945,0.05592,89347.0,89342.0,0.08014807]
[1765809125149,0.2371125,89347.0,89330.0,0.01654]
[1765809125445,0.0671135,89339.0,89327.0,0.00011454]
[1765809125651,0.05592,89328.0,89327.0,0.00011454]
[1765809125835,0.05592,89328.0,89310.0,0.15010009]
[1765809125836,0.05592,89310.0,89309.0,0.02794231]
[1765809126150,0.05592,89310.0,89301.0,0.08014807]
[1765809126151,0.0671181,89302.0,89301.0,0.00016786]
[1765809126445,0.24592,89302.0,89301.0,0.00016786]
[1765809126640,0.19,89302.0,89301.0,0.05778786]
[1765809126830,0.00016786,89318.0,89317.0,0.05762]
[1765809127029,0.1602824,89318.0,89317.0,0.05762]
[1765809127644,0.15010009,89360.0,89317.0,0.05762]
[1765809127645,0.001,89347.0,89346.0,0.02959]
[1765809127943,0.22692,89347.0,89346.0,0.05762]
[1765809128240,0.05592,89338.0,89337.0,0.55986009]
[1765809128446,0.05592,89338.0,89328.0,0.15010009]
[1765809128447,0.2371137,89338.0,89328.0,0.15010009]
[1765809128630,0.0285,89330.0,89329.0,0.61006]
[1765809128837,0.2285,89330.0,89329.0,0.61006]
[1765809129043,0.2,89330.0,89329.0,0.61006]
[1765809129355,0.2,89330.0,89329.0,0.76066]
[1765809130956,0.2285,89330.0,89329.0,0.76066]
[1765809131146,0.22826004,89330.0,89329.0,0.76066]
[1765809131448,0.22826004,89330.0,89329.0,0.76266]
[1765809131645,0.25568004,89330.0,89329.0,0.003]
[1765809132049,0.19976004,89330.0,89329.0,0.06062]
[1765809132646,0.25568004,89330.0,89329.0,0.001]
[1765809132853,0.25668004,89330.0,89329.0,0.38748]
[1765809133245,0.26787464,89330.0,89329.0,0.38748]
[1765809133843,0.22926004,89330.0,89329.0,0.4451]
[1765809134040,0.20076004,89330.0,89329.0,0.4451]
[1765809134641,0.20076004,89330.0,89324.0,0.00016796]
[1765809134642,0.05592,89325.0,89324.0,0.00016796]
[1765809134840,0.2571152,89325.0,89324.0,0.00016796]
[1765809135944,0.2581152,89325.0,89324.0,0.02975796]
[1765809136336,0.24692,89325.0,89324.0,0.05778796]
[1765809136540,0.192,89325.0,89324.0,0.05778796]
[1765809136942,0.01662,89362.0,89341.0,0.05762]
[1765809137149,0.18016796,89342.0,89341.0,0.32138]
[1765809137758,0.0111902,89366.0,89356.0,0.0111913]
[1765809137947,0.2196902,89366.0,89365.0,0.02959]
[1765809138144,0.01662,89362.0,89340.0,0.01654]
[1765809138450,0.0111924,89348.0,89341.0,0.25452]
[1765809138659,0.05592,89343.0,89342.0,0.70336]
[1765809138849,0.22592,89343.0,89342.0,0.70336]
[1765809139042,0.24592,89343.0,89342.0,0.70336]
[1765809139847,0.05592,89341.0,89340.0,0.70636]
[1765809140057,0.25592,89341.0,89340.0,0.003]
[1765809140254,0.25592,89341.0,89334.0,0.02975786]
[1765809140255,0.05592,89335.0,89334.0,0.02975786]
[1765809140558,0.16,89335.0,89334.0,0.29414786]
[1765809140758,0.21592,89335.0,89334.0,0.00016786]
[1765809141059,0.21592,89335.0,89320.0,0.15010009]
[1765809141060,0.0671158,89321.0,89320.0,0.15010009]
[1765809141360,0.18,89321.0,89320.0,0.05762]
[1765809141743,0.05592,89318.0,89317.0,0.1258]
[1765809141946,0.21592,89318.0,89317.0,0.1258]
[1765809142556,0.16,89318.0,89317.0,0.18342]
[1765809143161,0.001,89321.0,89320.0,0.05762]
[1765809143459,0.17,89321.0,89320.0,0.05762]
[1765809143659,0.00016786,89326.0,89325.0,0.0688152]
[1765809143859,0.17016786,89326.0,89325.0,0.0688152]
[1765809145946,0.05592,89322.0,89318.0,0.0111961]
[1765809146149,0.01662,89323.0,89304.0,0.0111979]
[1765809146352,0.01662,89323.0,89308.0,0.0111974]
[1765809146353,0.05592,89310.0,89308.0,0.0111974]
[1765809146666,0.17,89310.0,89309.0,0.76158786]
[1765809147348,0.01436306,89326.0,89309.0,0.76158786]
[1765809147349,0.00216786,89326.0,89310.0,0.0277371]
[1765809147553,0.0285,89324.0,89323.0,0.0407855]
[1765809147751,0.22592,89324.0,89323.0,0.0111955]
[1765809148364,0.05592,89320.0,89319.0,0.0111959]
[1765809148553,0.22592,89320.0,89319.0,0.7078559]
[1765809149456,0.22592,89320.0,89319.0,0.6502359]
[1765809149771,0.22592,89320.0,89309.0,0.00316786]
[1765809149772,0.06663,89310.0,89309.0,0.00316786]
[1765809150060,0.05667,89281.0,89280.0,0.00013019]
[1765809150260,0.05667,89281.0,89280.0,0.06967109]
[1765809150261,0.17,89281.0,89280.0,0.06967109]
[1765809150464,0.17,89281.0,89280.0,0.76223019]
[1765809151660,0.0111966,89315.0,89288.0,0.05891]
[1765809151849,0.0111966,89315.0,89306.0,0.01655]
[1765809151850,0.16,89315.0,89306.0,0.01655]
[1765809152050,0.0111957,89322.0,89321.0,0.05676]
[1765809152265,0.2011957,89322.0,89321.0,0.43836]
[1765809153054,0.2565357,89322.0,89321.0,0.3816]
[1765809153354,0.0111966,89314.0,89313.0,0.00016796]
[1765809153555,0.0111966,89314.0,89313.0,1.62388796]
[1765809153556,0.2011966,89314.0,89313.0,1.62388796]
[1765809153755,0.2290166,89314.0,89313.0,1.62388796]
[1765809154059,0.2290166,89314.0,89313.0,0.00016796]
[1765809154060,0.2565366,89314.0,89313.0,0.00016796]
[1765809154465,0.2565366,89314.0,89313.0,0.17220796]
[1765809154665,0.2565366,89314.0,89313.0,0.00116796]
[1765809155062,0.2565366,89314.0,89313.0,0.15684796]
[1765809155464,0.2565366,89314.0,89313.0,0.00116796]
[1765809155657,0.2565366,89314.0,89313.0,0.70592796]
[1765809156164,0.0111988,89297.0,89292.0,0.01655]
[1765809156367,0.2011988,89297.0,89296.0,0.05676]
[1765809156561,0.2011988,89297.0,89296.0,0.41135]
[1765809156961,0.0112005,89284.0,89280.0,0.31824353]
[1765809157167,0.00016796,89291.0,89280.0,0.23814477]
[1765809157354,0.05534,89281.0,89280.0,0.01761423]
[1765809157666,0.22534,89281.0,89280.0,0.01761423]
[1765809157970,0.17,89281.0,89280.0,0.77921423]
[1765809158164,0.17,89281.0,89280.0,0.79576423]
[1765809158467,0.17,89281.0,89280.0,2.19544423]
[1765809159969,0.17,89281.0,89280.0,2.19844423]
[1765809160170,0.00016796,89291.0,89290.0,0.0679596]
[1765809160468,0.18016796,89291.0,89281.0,0.23173124]
[1765809160670,0.0112004,89284.0,89283.0,0.05676]
[1765809160869,0.1912004,89284.0,89283.0,0.05676]
[1765809161266,0.18,89284.0,89283.0,2.16136]
[1765809161570,0.00116796,89291.0,89290.0,0.0679596]
[1765809161764,0.0111966,89315.0,89311.0,0.02771]
[1765809161959,0.0111966,89315.0,89296.0,0.0111988]
[1765809161960,0.18,89315.0,89314.0,0.02771]
[1765809162265,0.18,89315.0,89314.0,0.05676]
[1765809162457,0.20782,89315.0,89314.0,0.02771]
[1765809162773,0.20782,89315.0,89314.0,0.22871]
[1765809163159,0.19,89315.0,89314.0,0.25776]
[1765809163673,0.19,89315.0,89308.0,1.39984]
[1765809163674,0.21782,89315.0,89308.0,1.39984]
[1765809163875,0.02782,89309.0,89308.0,0.0111973]
[1765809164175,0.20782,89309.0,89308.0,2.1160373]
[1765809164667,0.18,89309.0,89308.0,2.1160373]
[1765809166570,0.001,89309.0,89308.0,2.22800872]
[1765809166775,0.05634,89309.0,89308.0,0.11197142]
[1765809167075,0.171,89309.0,89308.0,0.02771]
[1765809167268,0.17,89309.0,89308.0,1.58703]
[1765809167467,0.171,89309.0,89308.0,1.58703]
[1765809167668,0.22634,89309.0,89308.0,1.58703]
[1765809167868,0.22634,89309.0,89308.0,0.73255]
[1765809168267,0.22534,89309.0,89308.0,0.73255]
[1765809168470,0.171,89309.0,89308.0,0.7616]
[1765809169174,0.00016796,89323.0,89322.0,0.0679556]
[1765809169370,0.20016796,89323.0,89322.0,0.7727156]
[1765809170770,0.20016796,89323.0,89322.0,0.05676]
[1765809171075,0.25550796,89323.0,89322.0,2.16124]
[1765809171275,0.20016796,89323.0,89322.0,2.16124]
[1765809171476,0.20316796,89323.0,89322.0,2.16124]
[1765809171774,0.20292799,89323.0,89322.0,2.16124]
[1765809172076,0.20492799,89323.0,89322.0,2.27319387]
[1765809172272,0.005,89323.0,89322.0,2.27319387]
[1765809172477,0.005,89323.0,89322.0,2.35332948]
[1765809172673,0.005,89323.0,89322.0,2.27319387]
[1765809172866,0.005,89323.0,89322.0,2.35332948]
[1765809173074,0.005,89323.0,89322.0,2.35328948]
[1765809173669,0.003,89323.0,89322.0,2.16116]
[1765809174174,0.001,89323.0,89322.0,2.16112]
[1765809174368,0.001,89323.0,89322.0,0.05676]
[1765809174574,0.171,89323.0,89322.0,0.05676]
[1765809174773,0.25634,89323.0,89322.0,0.05676]
[1765809174967,0.25634,89323.0,89322.0,0.05876]
[1765809175166,0.25634,89323.0,89322.0,0.289]
[1765809175373,0.25534,89323.0,89322.0,0.29]
[1765809175572,0.25517204,89323.0,89322.0,0.05876]
[1765809175776,0.2,89323.0,89322.0,0.76344]
[1765809176478,0.2,89323.0,89322.0,0.002]
[1765809176479,0.25534,89323.0,89322.0,0.002]
[1765809176779,0.27215,89323.0,89322.0,0.002]
[1765809177075,0.27215,89323.0,89322.0,0.19944]
[1765809177379,0.25634,89323.0,89322.0,0.19844]
[1765809177580,0.066537,89311.0,89305.0,0.08013561]
[1765809177874,0.0665374,89308.0,89307.0,0.29124]